[Event "Coimbra Queima Fitas Open 2024"]
[Site "Coimbra"]
[Date "2024.04.28"]
[Round "7.16"]
[White "Pacetti Terra, Nicolas Marcelo"]
[Black "Faryma, Maksym"]
[Result "0-1"]
[ECO "A50"]
[WhiteElo "2019"]
[BlackElo "1863"]
[Annotator "TA"]
[PlyCount "134"]
[EventDate "2024.04.23"]
[EventType "swiss"]
[EventCountry "POR"]
[SourceTitle "playchess.com"]
[Source "ChessBase"]
[SourceQuality "1"]
[TimeControl "5400+30"]

{[%evp 52,134,45,58,52,28,45,35,154,152,404,62,60,0,0,-15,0,-464,-47,-126,-117,-397,-251,-254,-262,-622,-614,-662,-534,-484,-358,-323,-219,-240,-215,-214,-138,-380,-464,-441,-414,-464,-423,-417,-284,-379,-376,-490,-463,-428,0,-754,-740,-798,-775,-920,-976,-932,-972,-905,-712,-875,-870,-873,-810,-2008,-1966,-1484,-1365,-29983,0,-29973,-29974,-29983,-29966,-29977,-6091,-29980,-10174,-29982,-29983,-29995,-29996,-29998,-29999]} 1. d4 {[%emt 0:00:04]} Nf6 {[%emt 0:00:10]} 2. c4 {[%emt 0:00:06]} b6 {[%emt 0:00:12]} 3. Nc3 {[%emt 0:00:20]} Bb7 {[%emt 0:00:26]} 4. d5 {[%emt 0:04:28]} d6 {[%emt 0:01:42]} 5. e4 {[%emt 0:00:31]} Nbd7 {[%emt 0:00:47]} 6. Bd3 {[%emt 0:09:12] A50: Queen's Fianchetto Defence (1 d4 Nf6 2 c4 b6).} g6 {[%emt 0:04:14]} 7. f4 {[%emt 0:02:16]} c6 $146 {[%emt 0:04:33]} ({Predecessor:} 7... Bg7 8. Nf3 O-O 9. O-O e6 10. Re1 e5 11. f5 h6 12. Bd2 a6 13. Qc1 Kh7 {1-0 Aranha Filho,A (2316)-Bastos Seixas,P (2041) Florianopolis op 4th 2018 (1)}) 8. Nf3 {[%emt 0:01:54]} cxd5 {[%emt 0:00:16]} 9. cxd5 {[%emt 0:00:25]} Bg7 {[%emt 0:03:22]} 10. O-O {[%emt 0:02:58]} O-O {[%emt 0:01:17]} 11. Re1 {[%emt 0:05:00]} Kh8 {[%emt 0:16:46]} 12. h3 {[%emt 0:03:05]} a5 {[%emt 0:12:52]} 13. Bb5 {[%emt 0:22:27]} Rc8 {[%emt 0:11:38]} 14. e5 {[%emt 0:18:31]} Ne8 {[%emt 0:10:54]} 15. e6 {[%emt 0:10:59]} fxe6 {[%emt 0:04:43]} 16. Ng5 {[%emt 0:00:50]} Nc7 {[%emt 0:00:29]} 17. dxe6 {[%emt 0:00:38]} Nf6 {[%emt 0:00:25]} 18. Nf7+ {[%emt 0:00:35]} Rxf7 {[%emt 0:00:08]} 19. exf7 {[%emt 0:00:08]} Nxb5 {[%emt 0:05:09]} 20. Nxb5 {[%emt 0:00:13]} Qd7 {[%emt 0:00:23]} 21. Nc3 {[%emt 0:03:08]} b5 {[%emt 0:01:35]} 22. a4 {[%emt 0:02:18]} b4 {[%emt 0:01:17]} 23. Nb5 {[%emt 0:00:25]} Rf8 {[%emt 0:05:29]} 24. Be3 {[%emt 0:02:35]} Rxf7 {[%emt 0:01:50]} 25. Rc1 {[%emt 0:01:03]} Nd5 {[%emt 0:02:37]} 26. Bd4 {[%emt 0:04:07]} Rxf4 {[%emt 0:00:51]} 27. Bxg7+ {[%emt 0:00:12]} Kxg7 {[%emt 0:00:06]} 28. Qd2 {[%emt 0:01:11]} Rf8 {[%emt 0:03:57]} 29. Rf1 {[%emt 0:02:54]} Re8 {[%emt 0:00:41]} (29... Rxf1+ $14 30. Rxf1 Bc6) 30. Qf2 $1 $16 {[%emt 0:02:17]} e5 $2 {[%emt 0:00:47]} (30... Rb8 $16 {is a better defense.} 31. Qf7+ Kh8) 31. Rfd1 $2 {[%emt 0:00:36]} (31. Nxd6 $1 $18 Qxd6 32. Qf7+ Kh6 33. Qxe8) 31... Re7 {[%emt 0:00:28]} 32. Qa7 {[%emt 0:00:32]} (32. Qh4 $14) 32... Qd8 $11 {[%emt 0:00:47]} 33. Qf2 {[%emt 0:00:25]} Rf7 {[%emt 0:00:28]} 34. Qc2 $2 {[%emt 0:00:31][%mdl 8192]} (34. Qe1 $1 $11 {and White stays safe.}) 34... Rd7 $2 {[%emt 0:01:43]} (34... Qb6+ 35. Kh2 $11) (34... Ne3 $1 $19 {[%cal Re3c2]} 35. Nc7 (35. Rxd6 $2 Qg5 $19) 35... Kg8 (35... Nxc2 $2 36. Ne6+ Kf6 37. Nxd8 $18)) 35. Qb3 {[%emt 0:00:30] [#]} (35. Rd3 $1 $15 Qh4 (35... Nf4 36. Rxd6 Kh6 37. Qd2 $11) 36. Rf1) 35... Nf4 $1 $17 {[%emt 0:00:22]} 36. Rd2 $2 {[%emt 0:00:31][%mdl 8192]} (36. Rc2 $17 {is the only way for White.}) 36... Qg5 {[%emt 0:01:27]} 37. Rcc2 {[%emt 0:00:31]} Be4 {[%emt 0:01:01]} 38. Nc7 $2 {[%emt 0:00:29]} (38. Nxd6 Bxg2 (38... Bxc2 39. Qxc2 Nxh3+ 40. Kh1 $11) 39. Ne8+ (39. Rxg2 $2 Nxg2 40. Ne8+ Kh8 $19) 39... Kh8 40. Rxg2 Nxg2 (40... Qd8 41. Qe3 $11) 41. Rxg2) 38... Bxc2 $19 {[%emt 0:00:32]} 39. Rxc2 {[%emt 0:00:28]} Qe7 {[%emt 0:00:26]} 40. Nd5 {[%emt 0:00:28]} Qf7 {[%emt 0:00:06]} 41. Rd2 {[%emt 0:00:30]} Qe6 {[%emt 0:00:31]} 42. Qf3 {[%emt 0:00:29]} Nh5 {[%emt 0:01:28]} 43. Qd3 {[%emt 0:00:37]} Rf7 {[%emt 0:00:52]} 44. Rf2 $2 {[%emt 0:00:31]} (44. Ne3 $17) 44... Rxf2 $19 {[%emt 0:00:40]} 45. Kxf2 {[%emt 0:00:04]} Nf6 {[%emt 0:00:19]} 46. Nxf6 {[%emt 0:00:48]} Qxf6+ {[%emt 0:00:04]} (46... Kxf6 47. Ke1 $19) 47. Kg1 {[%emt 0:00:28]} Qd8 {[%emt 0:00:25]} 48. Qb5 {[%emt 0:00:41]} Qc7 {[%emt 0:00:06]} 49. b3 {[%emt 0:00:15]} Kf6 {[%emt 0:00:39]} 50. Qe8 {[%emt 0:00:23]} Kg7 $2 {[%emt 0:00:13]} (50... Kg5 $19 51. Qb5 Qc1+ 52. Kh2 Qf4+ 53. g3 Qf2+ 54. Kh1 Qxg3) 51. Qe6 $2 {[%emt 0:00:34][%mdl 8192]} (51. Qb5 $11 e4 52. h4) 51... Qc1+ $19 {[%emt 0:00:34]} 52. Kh2 {[%emt 0:00:16] [#]} Qf4+ $1 {[%emt 0:00:05]} 53. Kh1 {[%emt 0:00:34]} e4 {[%emt 0:00:06]} 54. Qe7+ {[%emt 0:00:55]} Kh6 {[%emt 0:00:08]} 55. g3 {[%emt 0:00:24]} Qxg3 {[%emt 0:01:39]} 56. Qxe4 {[%emt 0:00:17]} Qxh3+ {[%emt 0:00:05]} 57. Kg1 {[%emt 0:00:05]} Qg3+ {[%emt 0:00:09]} 58. Kh1 {[%emt 0:00:15]} Qe5 {[%emt 0:00:19]} 59. Qa8 {[%emt 0:00:52]} Qf5 60. Qd8 {[%emt 0:00:48]} Qe5 $2 {[%emt 0:01:32]} (60... Qh5+ {mates} 61. Kg2 Qg5+ 62. Qxg5+ Kxg5 63. Kf3 h5 64. Kg3 h4+ 65. Kf3 Kf5 66. Ke3 h3 67. Kf2 Kf4 68. Kf1 Kf3 69. Kg1 d5 70. Kh1 d4 71. Kh2 d3 72. Kxh3 g5 (72... d2 73. Kh4 Kf4 74. Kh3 d1=Q 75. Kg2 Qd2+ 76. Kg1 Kf3 77. Kh1 Qg2#) 73. Kh2 d2 74. Kh3 d1=Q (74... d1=B 75. Kh2 g4 76. Kg1 Be2 77. Kh2 Kf2 78. Kh1 Bf1 79. Kh2 g3+ 80. Kh1 Bg2#) 75. Kh2 Qe2+ 76. Kh3 Qg2#) 61. Qf8+ $2 {[%emt 0:00:24][%mdl 8192]} (61. Qa8 $11 Qa1+ 62. Kg2) 61... Kg5 {[%emt 0:00:10]} 62. Qd8+ {[%emt 0:00:11]} Kh5 {[%emt 0:00:08]} 63. Qg8 {[%emt 0:01:16]} h6 {[%emt 0:00:11]} (63... Kg4 $142 64. Qc4+ Qf4 65. Qc2 Qf3+ 66. Kg1 d5 (66... Qe3+ $2 67. Kf1 $19) 67. Qd2 Qe4 (67... Qxb3 68. Qd4+ Kf3 69. Qf6+ Ke2 70. Qf2+ Kd1 71. Qd4+ Kc1 72. Qc5+ Qc2 73. Qe3+ Kb1 74. Qf3 $19) (67... Qg3+ $2 68. Kh1 $19) 68. Qc1 Qd3 69. Qc6 Qd1+ (69... Qxb3 70. Qe6+ Kf4 71. Qf7+ Ke3 72. Qf2+ Kd3 73. Qg3+ Kc2 74. Qf2+ Kc1 75. Qf4+ Kb1 76. Qf1+ Ka2 77. Qg2+ Ka1 78. Qf2 $19) 70. Kg2 Qd2+ (70... Qxb3 71. Qd7+ Kf4 72. Qd6+ Ke4 73. Qe7+ Kd3 74. Qh4 $19) 71. Kg1 Kf3 72. Qf6+ Qf4 73. Qb2 Qe3+ 74. Kf1 Qd3+ 75. Kg1 Qd1+ 76. Kh2 Qe2+ 77. Qxe2+ Kxe2 78. Kg3 Ke3 79. Kg2 d4 80. Kf1 d3 81. Ke1 d2+ 82. Kd1 h5 83. Kc2 h4 (83... Ke2 {leads to mate.} 84. Kb1 d1=Q+ 85. Ka2 Kd3 86. Kb2 Qe2+ 87. Kb1 Kc3 88. Kc1 Qf1#) 84. Kd1 h3 85. Kc2 h2 86. Kb2 d1=Q (86... h1=B 87. Kc2 Ke2 88. Kb1 Be4+ 89. Ka2 d1=Q 90. Kb2 Qb1#) 87. Ka2 Qe2+ 88. Kb1 h1=Q#) 64. Qf8 {[%emt 0:00:27]} Kg5 {[%emt 0:01:14]} (64... Kg4 $142 65. Qf2 Qe4+ 66. Kg1 h5 67. Qa7 Qe1+ 68. Kg2 Qe2+ 69. Kh1 Qd1+ 70. Kg2 Qc2+ (70... Qxb3 71. Qd7+ Kg5 72. Qd8+ Kf5 73. Qxd6 $19) 71. Kf1 Kf3 (71... Qxb3 72. Qd4+ Kf5 73. Qf2+ Ke5 74. Qh2+ Kd5 75. Qd2+ Ke4 76. Qe2+ Kd4 77. Qf2+ Qe3 78. Qb2+ Kc4 79. Qc2+ Qc3 80. Qe4+ Kb3 81. Qb1+ Kxa4 82. Qd1+ b3 83. Qxd6 $19) 72. Qb7+ Kg3 73. Ke1 Qf2+ (73... Qxb3 $2 74. Qa6 $19) 74. Kd1 Qf3+ 75. Qxf3+ Kxf3 76. Kd2 Ke4 77. Ke2 d5 78. Kf2 d4 79. Ke2 h4 80. Kf1 Ke3 81. Kg2 d3 82. Kh3 Kf4 (82... d2 {is a self mate.} 83. Kg4 d1=Q+ 84. Kg5 Qd6 85. Kh6 Qe7 86. Kxg6 Kf4 87. Kh6 Kf5 88. Kh5 Qh7#) 83. Kh2 d2 84. Kg2 d1=Q (84... d1=B {gets mated.} 85. Kh3 Bxb3 86. Kh2 Bd5 87. Kg1 b3 88. Kf1 b2 89. Ke2 b1=Q 90. Kd2 Qb2+ 91. Ke1 Ke3 92. Kf1 Qf2#) 85. Kf2 Qc2+ (85... Qxb3 86. Kf1 Qc2 87. Kg1 Kf3 88. Kh1 Qg2#) 86. Ke1 Kg3 87. Kf1 Qf2#) 65. Qd8+ {[%emt 0:00:04]} Kg4 {[%emt 0:00:10]} 66. Qc8+ {[%emt 0:00:37]} Kg3 {[%emt 0:00:21]} 67. Qc1 {[%emt 0:00:52]} Qe4+ {[%emt 0:00:06]} 0-1

[Event "Coimbra Queima Fitas Open 2024"]
[Site "Coimbra"]
[Date "2024.04.28"]
[Round "7.17"]
[White "Goncalves, Diogo Figueiredo"]
[Black "Bernardo, Daniel Madureira"]
[Result "0-1"]
[ECO "B10"]
[WhiteElo "1864"]
[BlackElo "2005"]
[Annotator "NA RC"]
[PlyCount "94"]
[EventDate "2024.04.23"]
[EventType "swiss"]
[EventCountry "POR"]
[SourceTitle "playchess.com"]
[Source "ChessBase"]
[SourceQuality "1"]
[TimeControl "5400+30"]

1. e4 {[%emt 0:02:55]} c6 {[%emt 0:00:04]} 2. Nf3 {[%emt 0:00:05]} d5 {[%emt 0:00:14]} 3. d3 {[%emt 0:00:05]} Bg4 {[%emt 0:06:49]} 4. h3 {[%emt 0:00:12]} Bh5 {[%emt 0:02:44]} 5. Nc3 {[%emt 0:00:08]} dxe4 {[%emt 0:01:35]} 6. dxe4 {[%emt 0:01:05]} Qxd1+ {[%emt 0:02:25]} 7. Nxd1 {[%emt 0:00:37]} f6 {[%emt 0:01:44]} 8. g4 {[%emt 0:12:32]} Bg6 {[%emt 0:04:37]} 9. Nd2 {[%emt 0:03:30]} e5 {[%emt 0:00:23]} 10. Ne3 {[%emt 0:09:21]} Bf7 {[%emt 0:00:45]} 11. a4 {[%emt 0:02:33]} Nd7 {[%emt 0:01:51]} 12. Bc4 {[%emt 0:02:12]} Bc5 {[%emt 0:02:07]} 13. Ke2 {[%emt 0:01:57]} Ne7 {[%emt 0:02:58]} 14. c3 {[%emt 0:03:27]} a5 {[%emt 0:05:42]} 15. Nf5 {[%emt 0:04:13]} Nxf5 {[%emt 0:04:25]} 16. gxf5 {[%emt 0:25:21]} g6 {[%emt 0:00:51]} 17. fxg6 {[%emt 0:01:11]} hxg6 {[%emt 0:00:11]} 18. Bxf7+ {[%emt 0:01:49]} Kxf7 {[%emt 0:00:19]} 19. Nc4 {[%emt 0:00:29]} Nb6 {[%emt 0:09:27]} 20. Nxb6 {[%emt 0:00:14]} Bxb6 {[%emt 0:00:06]} 21. Be3 {[%emt 0:00:08]} Bxe3 {[%emt 0:00:16]} 22. Kxe3 {[%emt 0:00:06]} Rh4 {[%emt 0:00:04]} 23. Rad1 {[%emt 0:05:44]} Ke7 {[%emt 0:01:08]} 24. Rd2 {[%emt 0:02:37]} Rd8 {[%emt 0:00:04]} 25. Rxd8 {[%emt 0:00:48]} Kxd8 {[%emt 0:00:04]} 26. f3 {[%emt 0:02:22]} Ke7 {[%emt 0:01:51]} 27. Rg1 {[%emt 0:00:36]} Kf7 {[%emt 0:03:32]} 28. Rd1 {[%emt 0:00:44]} Ke6 {[%emt 0:00:07]} 29. Rg1 {[%emt 0:05:10]} Rxh3 {[%emt 0:00:25]} 30. Rxg6 {[%emt 0:01:00]} Rh2 {[%emt 0:00:06]} 31. b4 {[%emt 0:01:32]} axb4 {[%emt 0:05:57]} 32. cxb4 {[%emt 0:00:02]} Rb2 {[%emt 0:00:16]} 33. b5 {[%emt 0:00:57]} cxb5 {[%emt 0:00:09]} 34. axb5 {[%emt 0:00:02]} Rxb5 {[%emt 0:00:24]} 35. Rg7 {[%emt 0:00:17]} Rb3+ {[%emt 0:00:24]} 36. Ke2 {[%emt 0:00:09]} Rb1 {[%emt 0:00:09]} 37. Kd3 {[%emt 0:01:24]} b5 {[%emt 0:00:59]} 38. Rb7 {[%emt 0:00:31]} Rb3+ {[%emt 0:00:58]} 39. Ke2 {[%emt 0:00:30]} b4 {[%emt 0:00:22]} 40. Rb6+ {[%emt 0:00:28]} Kf7 {[%emt 0:00:05]} 41. Rb7+ {[%emt 0:03:14]} Kg6 {[%emt 0:00:10]} 42. Rb8 {[%emt 0:00:19]} Rb2+ {[%emt 0:00:58]} 43. Ke3 {[%emt 0:00:26]} b3 {[%emt 0:01:01]} 44. Rb7 {[%emt 0:01:41]} Rb1 {[%emt 0:01:48]} 45. Kf2 {[%emt 0:01:50]} b2 {[%emt 0:00:23]} 46. Rb8 {[%emt 0:01:20]} Rh1 {[%emt 0:00:43]} 47. Kg2 Rb1 0-1

[Event "Coimbra Queima Fitas Open 2024"]
[Site "Coimbra"]
[Date "2024.04.28"]
[Round "7.18"]
[White "Morais, Mario Martins Freita"]
[Black "Costa, Rui Filipe Magalhaes"]
[Result "0-1"]
[ECO "D00"]
[WhiteElo "1835"]
[BlackElo "1994"]
[Annotator "TA"]
[PlyCount "132"]
[EventDate "2024.04.23"]
[EventType "swiss"]
[EventCountry "POR"]
[SourceTitle "playchess.com"]
[Source "ChessBase"]
[SourceQuality "1"]
[TimeControl "5400+30"]

{[%evp 13,132,2,11,4,14,0,12,-4,15,13,11,-19,-7,-8,0,-9,0,0,46,54,373,-3,-4,-50,-46,-41,-39,-53,0,0,0,-3,0,0,0,0,0,0,0,0,0,-2,0,0,0,0,0,0,8,-13,-15,-251,-245,-203,-63,-233,-153,-143,-145,-366,-29,-39,0,0,0,-365,-348,-576,-531,-449,-351,-705,-698,-677,-683,-671,-600,-2320,-2668,-5010,-4133,-2791,-2377,-5600,-1187,-5620,-5716,-29947,-29951,-29955,-29957,-29961,-29961,-29959,-29962,-29967,-29968,-29969,-29970,-29969,-29965,-29968,-29968,-29972,-29970,-29978,-29977,-29979,-29980,-29978,-29979,-29979,-29980,-29980,-29981,-29981,-29982,-29987,-29988,-29988,-29989]} 1. d4 {[%emt 0:06:28]} d5 {[%emt 0:00:15]} 2. Nc3 {[%emt 0:00:09]} Nf6 {[%emt 0:00:17]} 3. Bf4 {[%emt 0:00:23]} c6 {[%emt 0:00:11]} 4. e3 {[%emt 0:00:46]} g6 {[%emt 0:00:08]} 5. Bd3 {[%emt 0:00:36]} Bg7 {[%emt 0:00:06]} 6. Nf3 {[%emt 0:01:21]} O-O {[%emt 0:00:16]} 7. h3 {[%emt 0:00:12]} Nbd7 {[%emt 0:01:31]} 8. O-O {[%emt 0:02:20]} b5 {[%emt 0:02:06]} 9. Ne2 {[%emt 0:02:55]} Bb7 {[%emt 0:00:34]} 10. c3 {[%emt 0:00:22] The position is equal.} Qb6 {[%emt 0:04:53]} 11. a4 {[%emt 0:04:15]} a5 {[%emt 0:01:37]} 12. b3 {[%emt 0:05:17]} Rfc8 {[%emt 0:03:35]} 13. Ne5 {[%emt 0:09:16]} Ba6 {[%emt 0:07:00]} 14. b4 {[%emt 0:05:35]} bxa4 {[%emt 0:09:47] ...Nxe5 is the strong threat.} 15. bxa5 {[%emt 0:06:08]} Qxa5 {[%emt 0:04:15]} (15... Qd8 $1 $11 {is more appropriate.}) 16. Rxa4 $14 {[%emt 0:00:30]} Qb6 {[%emt 0:00:10][%mdl 8192]} (16... Qxa4 $14 17. Qxa4 Bxd3) 17. Rb4 $2 {[%emt 0:00:11]} (17. Qa1 $18) 17... Qd8 $11 {[%emt 0:00:10]} 18. Qb3 {[%emt 0:05:14]} (18. Bxa6 $11 {might be stronger.} Rxa6 19. Ra4 Rxa4 20. Qxa4) 18... Nxe5 $15 {[%emt 0:00:40]} 19. Bxa6 {[%emt 0:00:12]} Rxa6 {[%emt 0:02:51]} 20. Bxe5 {[%emt 0:00:13]} Nd7 {[%emt 0:01:17]} (20... Ne4 $15 21. Bxg7 Kxg7) 21. Bxg7 $11 {[%emt 0:01:25]} Kxg7 {[%emt 0:00:08]} 22. Rb7 {[%emt 0:02:02]} Rc7 {[%emt 0:05:00]} 23. Rb1 {[%emt 0:00:34]} Ra7 {[%emt 0:00:20]} 24. Rxa7 {[%emt 0:01:30]} Rxa7 {[%emt 0:00:06]} 25. c4 {[%emt 0:00:11]} Qa5 {[%emt 0:06:13]} 26. Nc3 {[%emt 0:03:32]} e6 {[%emt 0:01:25]} 27. e4 {[%emt 0:07:59]} e5 {[%emt 0:02:43]} 28. exd5 {[%emt 0:07:43]} exd4 {[%emt 0:00:33]} 29. Ne4 {[%emt 0:01:35]} cxd5 {[%emt 0:00:28]} 30. cxd5 {[%emt 0:00:05]} Nc5 {[%emt 0:00:29]} 31. Nxc5 {[%emt 0:00:12]} Qxc5 {[%emt 0:00:10]} 32. Qb6 $2 {[%emt 0:12:04]} (32. Qb8 $11) 32... Qxb6 $19 {[%emt 0:01:21]} (32... Qxd5 $2 33. Qxa7 h6 34. Rd1 $18) 33. Rxb6 {[%emt 0:00:01][%mdl 4096] Endgame. KR-KR} d3 {[%emt 0:00:09]} (33... Ra1+ $19 34. Kh2 Ra5) 34. Rb2 $2 {[%emt 0:01:57]} ({Better is} 34. Rb1 $15) 34... Kf6 {[%emt 0:00:42]} 35. f3 {[%emt 0:04:27]} Ke5 {[%emt 0:00:09]} 36. Kf2 $2 {[%emt 0:00:02]} (36. d6 $17) 36... Kd4 $2 {[%emt 0:00:37]} (36... Kxd5 $19 37. Ke1 Kc4) 37. d6 $11 {[%emt 0:03:39]} Rd7 {[%emt 0:03:08]} 38. Rb6 {[%emt 0:02:24]} Kc5 {[%emt 0:00:19]} 39. Rb2 {[%emt 0:00:46][%mdl 8192]} (39. Ra6 $11 {and White has nothing to worry.}) 39... Rxd6 $19 {[%emt 0:00:55] [#] Threatens to win with ...d2.} (39... Kxd6 40. Ke3 $11) 40. Ke3 {[%emt 0:01:08]} (40. Ke1 {was the only chance.} Re6+ 41. Kd1) 40... Kc4 {[%emt 0:02:37] ...Kc3 would now be deadly.} 41. Kd2 {[%emt 0:00:16]} Re6 {[%emt 0:01:31] ( -> ...Re2+)} 42. Kd1 {[%emt 0:00:14]} (42. Rb7 Re2+ 43. Kd1) 42... f5 {[%emt 0:02:03]} 43. Rb7 {[%emt 0:00:24]} h5 {[%emt 0:01:06]} 44. g4 {[%emt 0:00:23]} Kd4 {[%emt 0:04:02] [#] White must now prevent ...f4.} 45. Rd7+ {[%emt 0:02:55]} Ke3 {[%emt 0:01:25]} 46. gxf5 {[%emt 0:00:09]} gxf5 {[%emt 0:00:27]} 47. Rd5 {[%emt 0:00:44]} Rf6 {[%emt 0:08:18]} (47... Kxf3 48. Rxf5+ Ke3 49. h4 $11) 48. h4 Kxf3 {[%emt 0:00:58] Strongly threatening ...f4.} 49. Kd2 {[%emt 0:00:23]} Kg4 {[%emt 0:01:36] And now ...f4 would win.} 50. Ke3 {[%emt 0:00:44]} f4+ {[%emt 0:01:19] Black mates.} ({Inferior is} 50... Kxh4 51. Kf4 $11) 51. Kf2 {[%emt 0:00:11]} Ra6 {[%emt 0:03:51]} ({And not} 51... Kxh4 52. Kf3 $11) 52. Rxd3 {[%emt 0:00:59]} Ra2+ {[%emt 0:00:08]} ({Stronger than} 52... Kxh4 53. Kf3 $11) 53. Kf1 {[%emt 0:00:49]} Kxh4 {[%emt 0:00:17]} 54. Rd8 {[%emt 0:01:51]} Kg3 {[%emt 0:02:25]} 55. Rg8+ {[%emt 0:00:06]} Kf3 {[%emt 0:00:08][%cal Ra2a1]} 56. Kg1 {[%emt 0:00:01]} Ra5 {[%emt 0:01:40]} 57. Rg7 {[%emt 0:00:54]} h4 {[%emt 0:01:56]} 58. Kh2 {[%emt 0:00:13]} Re5 {[%emt 0:02:54]} 59. Rh7 {[%emt 0:00:57]} Ke2 {[%emt 0:01:21]} 60. Rxh4 {[%emt 0:00:23]} f3 {[%emt 0:01:28]} 61. Ra4 {[%emt 0:00:01]} f2 {[%emt 0:00:19]} 62. Ra2+ {[%emt 0:00:47]} Kf3 {[%emt 0:01:13][%cal Re5h5]} 63. Ra3+ {[%emt 0:00:00]} Re3 {[%emt 0:00:39]} 64. Ra1 {[%emt 0:00:10]} Rd3 {[%emt 0:00:12]} 65. Rb1 {[%emt 0:00:50]} Rd6 {[%emt 0:03:50][%cal Rd6h6]} 66. Rb3+ {[%emt 0:02:16]} Ke2 {[%emt 0:00:09] Never resign too early!   Weighted Error Value: White=0.97/Black=0.37.  Loses game:     	White=4     	Black=1      Missed win:     	White=1     	Black=1      Mistake:       	White=3     	Black=3      Inaccurate:     	White=1     	Black=2      OK:         	White=15    	Black=10     Best:        	White=2     	Black=5} 0-1